bitfinex/quotes_SOLUSD_20241111
["timestamp","ask_amount","ask_price","bid_price","bid_amount"]
[1731329853671,23.776884,216.43,216.29,16.1813]
[1731329853870,20.0,216.42,216.29,16.1813]
[1731329854871,4.6208,216.41,216.29,16.1813]
[1731329855202,4.6208,216.41,216.29,11.558]
[1731329855561,20.0,216.4,216.29,11.558]
[1731329856672,4.6212,216.39,216.29,11.558]
[1731329857769,4.6212,216.39,216.27,20.3559]
[1731329857973,4.6212,216.39,216.15,41.625563]
[1731329857974,43.776884,216.38,216.24,16.72563931]
[1731329858159,73.776884,216.38,216.22,16.72563931]
[1731329858857,16.1759,216.37,216.23,4.6245]
[1731329859059,20.0,216.36,216.23,4.6245]
[1731329859648,20.0,216.36,216.22,16.72563931]
[1731329859854,23.776884,216.35,216.22,16.72563931]
[1731329860158,23.776884,216.33,216.2,11.5629]
[1731329860475,23.776884,216.35,216.16,15.4805]
[1731329860476,23.776884,216.31,216.18,16.72563931]
[1731329860680,20.0,216.32,216.18,32.91573931]
[1731329860871,4.6229,216.31,216.2,21.35083931]
[1731329861678,4.6229,216.31,216.23,16.72563931]
[1731329861980,4.6229,216.31,216.24,16.72563931]
[1731329862162,4.6217,216.37,216.27,16.72563931]
[1731329862369,4.6217,216.37,216.3,16.72563931]
[1731329863066,4.6217,216.37,216.29,16.72563931]
[1731329863661,24.6217,216.37,216.28,21.34903931]
[1731329864687,8.74426637,216.45,216.28,21.34903931]
[1731329864688,3.3552,216.59,216.41,23.776884]
[1731329864977,4.6172,216.58,216.39,23.776884]
[1731329865181,4.6172,216.58,216.45,16.72563931]
[1731329865476,8.17789316,216.57,216.33,20.0]
[1731329865683,0.1,216.55,216.38,16.72563931]
[1731329865860,0.1,216.56,216.4,16.72563931]
[1731329866769,4.6178,216.55,216.4,16.72563931]
[1731329867078,23.776884,216.54,216.4,16.72563931]
[1731329867269,20.0,216.53,216.38,16.72563931]
[1731329867575,20.0,216.51,216.38,16.72563931]
[1731329867763,20.0,216.49,216.38,16.72563931]
[1731329867962,35.58466484,216.49,216.38,16.72563931]
[1731329868686,35.58466484,216.49,216.37,11.5541]
[1731329868687,4.6193,216.48,216.36,16.72563931]
[1731329868871,4.6193,216.48,216.36,26.83240704]
[1731329869265,16.1677,216.48,216.36,26.83240704]
[1731329869473,16.1677,216.48,216.32,37.8683]
[1731329869474,47.132084,216.47,216.28,4.6234]
[1731329869767,62.71674884,216.47,216.32,26.83240704]
[1731329869956,62.71674884,216.47,216.28,16.1824]
[1731329869957,38.93986484,216.47,216.28,16.1824]
[1731329870162,23.3552,216.47,216.36,26.83240704]
[1731329870476,16.1677,216.48,216.4,26.83240704]
[1731329870477,4.6193,216.48,216.4,26.83240704]
[1731329870667,4.6185,216.52,216.42,26.83240704]
[1731329872787,4.6185,216.52,216.44,26.83240704]
[1731329872987,4.6185,216.52,216.46,26.83240704]
[1731329873987,4.618,216.54,216.42,26.83240704]
[1731329874179,4.618,216.54,216.44,26.83240704]
[1731329874675,4.618,216.54,216.46,26.83240704]
[1731329875176,7.71785376,216.63,216.41,16.1729]
[1731329875177,4.6165,216.62,216.52,26.83240704]
[1731329875373,4.6165,216.62,216.55,26.83240704]
[1731329875573,4.6165,216.62,216.53,26.83240704]
[1731329879680,7.81785376,216.69,216.47,6.3065]
[1731329879681,43.776884,216.65,216.51,26.83240704]
[1731329879886,7.71785376,216.64,216.49,26.83240704]
[1731329880199,43.776884,216.63,216.47,33.13890704]
[1731329880501,20.0,216.61,216.47,33.13890704]
[1731329880867,20.0,216.61,216.47,37.75830704]
[1731329881067,7.71785376,216.61,216.47,33.13890704]
[1731329881272,23.3552,216.6,216.47,26.83240704]
[1731329881682,23.776884,216.57,216.44,26.83240704]
[1731329881898,20.0,216.54,216.42,26.83240704]
[1731329882088,20.0,216.52,216.4,26.83240704]
[1731329882295,20.0,216.54,216.4,26.83240704]
[1731329882296,20.0,216.5,216.4,26.83240704]
[1731329883491,4.6191,216.49,216.38,26.83240704]
[1731329883691,16.1669,216.49,216.38,26.83240704]
[1731329883896,36.2271,216.48,216.38,26.83240704]
[1731329884091,36.2271,216.48,216.38,25.35699904]
[1731329884293,20.0,216.46,216.34,26.83240704]
[1731329884499,20.0,216.46,216.36,26.83240704]
[1731329885230,20.0,216.46,216.34,26.83240704]
[1731329885392,4.62,216.45,216.34,26.83240704]
[1731329885803,20.0,216.44,216.33,26.83240704]
[1731329886312,20.0,216.44,216.31,26.83240704]
[1731329886503,23.776884,216.41,216.28,26.83240704]
[1731329886698,23.776884,216.41,216.27,26.83240704]
[1731329886699,20.0,216.4,216.27,26.83240704]
[1731329887007,20.0,216.4,216.28,26.83240704]
[1731329887387,4.6212,216.39,216.27,26.83240704]
[1731329888392,20.0,216.37,216.25,6.1034]
[1731329888592,20.0,216.37,216.24,20.5399]
[1731329888593,20.0,216.35,216.23,26.83240704]
[1731329888988,20.0,216.35,216.24,26.83240704]
[1731329889188,3.3552,216.37,216.24,26.83240704]
[1731329889403,23.776884,216.36,216.24,26.83240704]
[1731329889686,20.0,216.35,216.24,26.83240704]
[1731329890509,20.0,216.35,216.22,26.83240704]
[1731329890710,20.0,216.33,216.22,26.83240704]
[1731329891611,4.6227,216.32,216.22,26.83240704]
[1731329891791,4.6227,216.32,216.19,10.9146]
[1731329891792,4.6227,216.32,216.24,26.83240704]
[1731329892195,4.6227,216.32,216.26,26.83240704]
[1731329893998,4.6223,216.34,216.24,26.83240704]
[1731329894387,4.6223,216.34,216.22,26.83240704]
[1731329894587,4.6223,216.34,216.21,4.6249]
[1731329894588,4.6223,216.34,216.2,11.5633]
[1731329894903,20.0,216.33,216.21,26.83240704]
[1731329895618,16.1781,216.34,216.21,26.83240704]
[1731329895911,4.6227,216.32,216.21,26.83240704]
[1731329897309,11.5558,216.34,216.23,26.83240704]
[1731329897517,4.6221,216.35,216.25,26.83240704]
[1731329897725,4.6221,216.35,216.27,26.83240704]
[1731329899998,4.1221,216.35,216.27,26.83240704]
[1731329900599,4.621,216.4,216.28,43.776884]
[1731329900803,0.1,216.51,216.28,43.776884]
[1731329900804,4.6197,216.46,216.36,26.83240704]
[1731329901894,7.9746,216.48,216.4,26.83240704]
[1731329902096,4.6194,216.48,216.4,26.83240704]
[1731329903115,4.6185,216.52,216.42,26.83240704]
[1731329904199,4.6185,216.52,216.41,4.6208]
[1731329904716,4.6185,216.52,216.4,31.45330704]
[1731329905194,4.6185,216.52,216.42,26.83240704]
[1731329906113,4.6185,216.52,216.36,26.83240704]
[1731329906114,4.6172,216.58,216.48,26.83240704]
[1731329906609,4.6172,216.58,216.5,26.83240704]
[1731329906816,4.6161,216.63,216.54,26.83240704]
[1731329907116,4.6158,216.65,216.51,20.0]
[1731329907411,4.6158,216.65,216.52,26.83240704]
[1731329907818,16.1551,216.65,216.48,20.0]
[1731329908003,12.04173154,216.65,216.53,26.83240704]
[1731329908319,4.6158,216.65,216.53,26.83240704]
[1731329909312,16.1551,216.65,216.53,26.83240704]
[1731329911215,4.6158,216.65,216.55,26.83240704]
[1731329912610,4.6158,216.65,216.53,26.83240704]
[1731329912812,4.6158,216.65,216.51,26.83240704]
[1731329913711,4.6158,216.65,216.55,26.83240704]
[1731329913912,4.6158,216.65,216.57,26.83240704]
[1731329916328,4.6158,216.65,216.55,26.83240704]
[1731329916526,4.6158,216.65,216.51,26.83240704]
[1731329916709,16.1551,216.65,216.49,38.38000704]
[1731329917417,23.776884,216.64,216.49,38.38000704]
[1731329917611,23.776884,216.64,216.49,16.1667]
[1731329917916,23.776884,216.64,216.49,38.38000704]
[1731329918105,4.6161,216.63,216.49,42.99910704]
[1731329918509,4.6161,216.63,216.49,38.38000704]
[1731329918711,16.1565,216.63,216.49,38.38000704]
[1731329919702,16.1565,216.63,216.49,42.99910704]
[1731329921327,23.776884,216.62,216.49,26.83240704]
[1731329921705,16.1565,216.63,216.49,26.83240704]
[1731329922022,23.776884,216.61,216.47,26.83240704]
[1731329922618,23.776884,216.61,216.45,26.83240704]
[1731329922828,20.44,216.56,216.43,26.83240704]
[1731329923205,20.44,216.56,216.41,31.45320704]
[1731329923410,16.1624,216.55,216.41,31.45320704]
[1731329924326,16.1624,216.55,216.42,3.39050785]
[1731329924516,16.1624,216.55,216.41,31.45320704]
[1731329924825,4.6178,216.55,216.47,26.83240704]
[1731329925017,20.44,216.56,216.47,26.83240704]
[1731329925228,25.0577,216.56,216.47,26.83240704]
[1731329925417,25.0577,216.56,216.43,26.83240704]
[1731329926407,25.0577,216.56,216.41,26.83240704]
[1731329926408,23.776884,216.55,216.41,26.83240704]
[1731329926611,23.776884,216.55,216.39,37.75170704]
[1731329926925,16.1632,216.54,216.41,26.83240704]
[1731329928928,16.1632,216.54,216.41,16.76230548]
[1731329930301,16.1632,216.54,216.4,4.6209]
[1731329930511,16.1632,216.54,216.4,21.38320548]
[1731329933414,16.0565,216.53,216.4,16.76230548]
[1731329934602,16.1647,216.52,216.4,16.76230548]
[1731329934806,4.6185,216.52,216.42,16.76230548]
[1731329935021,20.44,216.56,216.48,16.76230548]
[1731329935415,20.44,216.56,216.4,39.2788]
[1731329935624,20.44,216.56,216.46,20.0]
[1731329935841,25.0578,216.56,216.41,16.76230548]
[1731329936518,23.776884,216.55,216.41,16.76230548]
[1731329936721,16.1632,216.54,216.41,16.76230548]
[1731329936918,23.776884,216.53,216.41,16.76230548]
[1731329937122,16.1632,216.54,216.43,16.76230548]
[1731329938024,11.5452,216.54,216.43,16.76230548]
[1731329938218,11.5452,216.54,216.41,21.38300548]
[1731329938722,23.776884,216.53,216.4,11.5526]
[1731329939027,23.976884,216.51,216.29,4.6234]
[1731329939226,6.20226804,216.5,216.3,16.76230548]
[1731329939434,23.776884,216.49,216.3,16.76230548]
[1731329939630,23.776884,216.49,216.32,16.76230548]
[1731329940233,23.776884,216.47,216.32,21.38500548]
[1731329940442,23.776884,216.47,216.32,21.38490548]
[1731329941435,16.1691,216.46,216.32,21.38490548]
[1731329941731,16.1691,216.46,216.36,16.76230548]
[1731329941732,4.6197,216.46,216.36,16.76230548]
[1731329942433,16.1691,216.46,216.32,11.5569]
[1731329942826,15.8939,216.44,216.29,16.76230548]
[1731329943031,15.8939,216.44,216.34,16.76230548]
[1731329943529,4.6204,216.43,216.34,21.38450548]
[1731329944936,4.6204,216.43,216.33,11.5564]
[1731329945526,4.6204,216.43,216.33,32.94120548]
[1731329947321,4.6204,216.43,216.3,4.623]
[1731329947322,16.1714,216.43,216.3,4.623]
[1731329947527,16.1714,216.43,216.29,11.5584]
[1731329947528,16.1714,216.43,216.29,28.32070548]
[1731329947725,16.1714,216.43,216.29,32.94410548]
[1731329948422,23.776884,216.42,216.27,21.38590548]
[1731329948623,23.776884,216.42,216.27,16.76230548]
[1731329949123,23.776884,216.42,216.27,21.38610548]
[1731329949326,16.1729,216.41,216.27,16.76230548]
[1731329949737,39.2771,216.41,216.27,21.38600548]
[1731329950542,23.776884,216.4,216.27,16.76230548]
[1731329950740,23.776884,216.38,216.25,11.5606]
[1731329951245,23.776884,216.36,216.22,4.6247]
[1731329951418,16.1774,216.35,216.22,21.38700548]
[1731329953519,4.6221,216.35,216.28,16.76230548]
[1731329954328,15.9008,216.37,216.28,16.76230548]
[1731329954526,20.5227,216.37,216.3,16.76230548]
[1731329954945,20.5227,216.37,216.26,16.76230548]
[1731329955745,20.5227,216.37,216.26,21.38620548]
[1731329957051,20.5227,216.37,216.3,16.76230548]
[1731329958149,20.5227,216.37,216.28,21.38570548]
[1731329958437,20.5227,216.37,216.28,16.76230548]
[1731329958644,20.5227,216.37,216.28,21.38580548]
[1731329958840,20.5227,216.37,216.27,4.6238]
[1731329959139,32.0769,216.37,216.24,16.76230548]
[1731329959351,32.0769,216.37,216.24,21.38670548]
[1731329960045,23.776884,216.36,216.22,16.1868]
[1731329960242,23.776884,216.36,216.22,32.94910548]
[1731329960947,23.776884,216.36,216.24,16.76230548]
[1731329961947,16.1774,216.35,216.22,11.562]
[1731329962136,16.1774,216.35,216.21,4.6251]
[1731329962137,23.776884,216.34,216.2,21.38760548]
[1731329962331,23.776884,216.34,216.2,32.95090548]
[1731329963249,4.6225,216.33,216.2,32.95090548]
[1731329963431,23.776884,216.32,216.2,32.95090548]
[1731329963748,4.6225,216.33,216.24,16.76230548]
[1731329964134,4.6225,216.33,216.22,16.76230548]
[1731329964735,11.5553,216.35,216.22,16.76230548]
[1731329965045,23.776884,216.34,216.22,21.38710548]
[1731329965228,23.776884,216.34,216.22,16.76230548]
[1731329966353,23.776884,216.34,216.18,15.6914]
[1731329966646,23.776884,216.34,216.19,36.76230548]
[1731329966851,23.776884,216.32,216.2,4.6253]
[1731329967249,23.776884,216.32,216.19,16.76230548]
[1731329967549,23.776884,216.32,216.17,16.76230548]
[1731329967852,16.1789,216.33,216.23,16.76230548]
[1731329967853,4.6225,216.33,216.23,16.76230548]
[1731329968636,15.9008,216.37,216.23,16.76230548]
[1731329968950,16.1767,216.36,216.23,21.38690548]
[1731329969141,23.776884,216.35,216.23,21.38690548]
[1731329969850,23.776884,216.35,216.23,32.94860548]
[1731329970839,4.6223,216.34,216.23,32.94860548]
[1731329971634,23.776884,216.33,216.21,16.76230548]
[1731329972668,23.776884,216.33,216.19,28.32590548]
[1731329972846,23.776884,216.31,216.19,32.95140548]
[1731329973150,18.476,216.3,216.19,16.76230548]
[1731329973367,23.776884,216.29,216.17,21.38810548]
[1731329973652,23.776884,216.29,216.17,16.76230548]
[1731329973839,23.776884,216.29,216.16,4.6261]
[1731329974043,23.776884,216.29,216.15,32.95440548]
[1731329974641,23.776884,216.29,216.15,16.1921]
[1731329974842,16.1826,216.28,216.16,21.38840548]
[1731329977438,16.1826,216.28,216.17,16.76230548]
[1731329980557,16.1826,216.28,216.13,4.6266]
[1731329980558,23.776884,216.27,216.15,16.76230548]
[1731329980860,16.1841,216.26,216.15,16.76230548]
[1731329981245,23.776884,216.25,216.13,16.76230548]
[1731329982671,23.776884,216.25,216.15,16.76230548]
[1731329982672,4.6244,216.24,216.15,16.76230548]
[1731329983759,23.776884,216.25,216.14,16.76230548]
[1731329983952,20.44,216.23,216.13,16.76230548]
[1731329984341,20.44,216.23,216.14,16.76230548]
[1731329984652,20.44,216.23,216.11,16.1953]
[1731329984653,20.44,216.23,216.15,16.76230548]
[1731329985363,4.6249,216.22,216.15,16.76230548]
[1731329985562,4.6249,216.22,216.16,16.76230548]
[1731329986368,4.6249,216.22,216.15,16.76230548]
[1731329986858,4.6249,216.22,216.16,16.76230548]
[1731329987842,4.6234,216.29,216.19,16.76230548]
[1731329988062,4.6234,216.29,216.23,16.76230548]
[1731329988571,4.6234,216.29,216.21,16.76230548]
[1731329988768,4.6234,216.29,216.18,16.76230548]
[1731329988769,16.1819,216.29,216.18,16.76230548]
[1731329989146,23.776884,216.28,216.17,16.76230548]
[1731329989565,23.776884,216.28,216.18,16.76230548]
[1731329990161,16.1819,216.29,216.19,16.76230548]
[1731329990360,16.1819,216.29,216.2,16.76230548]
[1731329990567,16.1819,216.29,216.19,16.76230548]
[1731329990871,23.776884,216.28,216.16,16.76230548]
[1731329991562,23.776884,216.28,216.15,16.76230548]
[1731329991766,23.776884,216.28,216.13,16.76230548]
[1731329992270,4.6249,216.22,216.13,16.76230548]
[1731329993049,16.0108,216.21,216.1,4.6272]
[1731329993264,16.0108,216.21,216.08,22.90041075]
[1731329993265,16.0108,216.21,216.11,16.76230548]
[1731329993451,16.0108,216.21,216.12,16.76230548]
[1731329994048,16.0108,216.21,216.09,16.1969]
[1731329994254,16.0108,216.21,216.1,16.76230548]
[1731329994468,4.6253,216.2,216.11,16.76230548]
[1731329994662,4.6253,216.2,216.13,16.76230548]
[1731329994874,4.6253,216.2,216.09,16.1969]
[1731329994875,4.6253,216.2,216.12,16.76230548]
[1731329995173,4.6253,216.2,216.09,16.1969]
[1731329995379,4.6253,216.2,216.14,16.76230548]
[1731329998782,4.6253,216.2,216.13,15.382443]
[1731329999578,4.6253,216.2,216.13,10.755643]
[1731329999760,4.6253,216.2,216.11,10.755643]
[1731329999967,4.6253,216.2,216.13,10.755643]
[1731330000373,20.44,216.23,216.17,10.755643]
[1731330000676,4.6227,216.32,216.21,10.755643]
[1731330000881,4.6227,216.32,216.18,10.6816]
[1731330001059,4.6227,216.32,216.18,4.6256]
[1731330001256,4.6227,216.32,216.16,28.0641]
[1731330001458,16.1796,216.32,216.16,16.1914]
[1731330001685,39.2935,216.32,216.16,11.5654]
[1731330001866,39.2935,216.32,216.15,10.755643]
[1731330001867,6.20226804,216.31,216.15,10.755643]
[1731330002063,6.20226804,216.31,216.15,15.381943]
[1731330002381,76.20226804,216.31,216.13,10.6826]
[1731330002583,16.1819,216.29,216.14,10.755643]
[1731330003264,4.6234,216.29,216.18,10.755643]
[1731330003464,4.6234,216.29,216.12,39.3296]
[1731330003864,4.6234,216.29,216.17,10.755643]
[1731330004262,4.6234,216.29,216.13,20.0]
[1731330004464,16.1796,216.32,216.14,16.1931]
[1731330004781,39.2935,216.32,216.16,10.755643]
[1731330004965,39.2935,216.32,216.18,10.755643]
[1731330005165,16.1796,216.32,216.23,10.755643]
[1731330005364,4.6227,216.32,216.23,10.755643]
[1731330006378,16.1796,216.32,216.19,11.5637]
[1731330006586,16.1796,216.32,216.2,10.755643]
[1731330007203,16.1796,216.32,216.21,10.755643]
[1731330007374,16.1796,216.32,216.19,22.319343]
[1731330007569,16.1796,216.32,216.21,10.755643]
[1731330008176,23.776884,216.31,216.19,16.1892]
[1731330008383,16.1796,216.32,216.19,16.1892]
[1731330008384,16.1796,216.32,216.19,26.944843]
[1731330008694,4.6227,216.32,216.23,10.755643]
[1731330009392,4.6227,216.32,216.25,10.755643]
[1731330009597,16.2067,216.33,216.25,10.755643]
[1731330009899,16.1878,216.39,216.25,10.755643]
[1731330009900,4.6214,216.38,216.31,10.755643]
[1731330010272,4.6214,216.38,216.21,16.2753]
[1731330010273,4.6214,216.38,216.29,10.755643]
[1731330010476,15.1739,216.39,216.31,10.755643]
[1731330010673,15.1739,216.39,216.3,20.0]
[1731330010674,15.1739,216.39,216.33,10.755643]
[1731330011179,19.7952,216.39,216.33,10.755643]
[1731330011804,19.7952,216.39,216.32,10.73647683]
[1731330012695,10.73647683,216.34,216.27,6.1035]
[1731330012871,10.73647683,216.34,216.25,16.1843]
[1731330012872,16.7841791,216.34,216.26,16.7841791]
[1731330013673,16.7841791,216.36,216.28,16.7841791]
[1731330014280,21.4055791,216.38,216.3,16.7841791]
[1731330015792,15.1739,216.39,216.32,16.7841791]
[1731330015997,16.7841791,216.42,216.34,16.7841791]
[1731330016182,16.7841791,216.46,216.38,16.7841791]
[1731330016384,16.7841791,216.48,216.4,16.7841791]
[1731330017298,21.4034791,216.48,216.4,21.4051791]
[1731330017594,16.7841791,216.52,216.44,16.7841791]
[1731330017794,16.7841791,216.5,216.42,16.7841791]
[1731330018707,16.7841791,216.48,216.4,16.1736]
[1731330018877,16.7841791,216.48,216.4,32.9577791]
[1731330019201,16.7841791,216.46,216.4,16.7841791]
[1731330019798,21.4039791,216.46,216.4,16.7841791]
[1731330021594,16.7841791,216.48,216.4,21.4050791]
[1731330021803,16.7841791,216.52,216.43,16.7841791]
[1731330022598,16.7841791,216.52,216.45,16.7841791]
[1731330022977,21.4021791,216.54,216.43,6.1507]
[1731330023177,21.4021791,216.54,216.46,16.7841791]
[1731330023382,16.7841791,216.52,216.44,16.7841791]
[1731330023586,4.6187,216.51,216.44,16.7841791]
[1731330023788,16.7841791,216.5,216.43,6.1507]
[1731330024104,16.7841791,216.48,216.4,28.3367791]
[1731330024695,16.7841791,216.48,216.4,16.7841791]
[1731330025016,4.6187,216.51,216.38,6.3044]
[1731330025017,16.7841791,216.46,216.38,23.0885791]
[1731330026705,16.7841791,216.48,216.4,16.7841791]
[1731330026911,16.7841791,216.49,216.41,16.7841791]
[1731330027787,16.7841791,216.47,216.4,16.7841791]
[1731330028581,4.618,216.54,216.42,16.7841791]
[1731330028785,16.7841791,216.51,216.43,16.7841791]
[1731330029008,4.618,216.54,216.38,22.4795]
[1731330029009,16.7841791,216.49,216.41,16.7841791]
[1731330029786,16.1632,216.54,216.38,17.8581]
[1731330030015,16.7841791,216.43,216.38,6.3044]
[1731330030515,16.7841791,216.41,216.34,28.3399791]
[1731330030689,16.7841791,216.39,216.33,6.2102]
[1731330030884,16.7841791,216.37,216.3,11.5579]
[1731330031284,16.7841791,216.37,216.3,28.3420791]
[1731330031624,21.4051791,216.41,216.33,16.7841791]
[1731330031798,16.7841791,216.38,216.31,16.7841791]
[1731330032128,16.7841791,216.32,216.27,22.5884]
[1731330032415,16.7841791,216.32,216.25,11.5606]
[1731330032612,4.6229,216.31,216.25,11.5606]
[1731330032805,21.4070791,216.31,216.25,11.5606]
[1731330033215,16.7841791,216.32,216.25,16.1848]
[1731330033417,16.7841791,216.36,216.29,16.7841791]
[1731330033597,16.7841791,216.4,216.33,16.7841791]
[1731330033794,16.0082,216.42,216.26,20.0]
[1731330034016,16.0082,216.42,216.25,16.1848]
[1731330034621,16.0082,216.42,216.25,16.2848]
[1731330034819,21.4049791,216.41,216.33,16.7841791]
[1731330035021,37.4129791,216.42,216.34,16.7841791]
[1731330035200,37.4129791,216.42,216.27,0.1]
[1731330035404,37.4129791,216.42,216.34,16.7841791]
[1731330035704,16.7841791,216.43,216.35,16.7841791]
[1731330035901,4.6203,216.44,216.27,0.1]
[1731330035902,16.7841791,216.44,216.37,16.7841791]
[1731330036618,16.7841791,216.44,216.32,15.2271]
[1731330036619,16.7841791,216.46,216.38,16.7841791]
[1731330036798,4.62,216.45,216.38,16.7841791]
[1731330037623,16.7841791,216.44,216.36,16.7841791]
[1731330037806,16.7841791,216.48,216.4,16.7841791]
[1731330037999,11.5463,216.52,216.42,16.7841791]
[1731330038000,16.7841791,216.5,216.42,16.7841791]
[1731330039000,16.0114,216.53,216.4,20.0]
[1731330039001,16.7841791,216.48,216.4,20.0]
[1731330039200,16.7841791,216.48,216.4,36.7841791]
[1731330039528,4.6187,216.51,216.4,36.7841791]
[1731330039529,16.7841791,216.49,216.41,16.7841791]
[1731330039694,16.7841791,216.5,216.42,16.7841791]
[1731330039898,16.7841791,216.52,216.44,16.7841791]
[1731330040119,4.6184,216.53,216.46,16.7841791]
[1731330040506,15.1129,216.58,216.48,16.7841791]
[1731330040698,15.1129,216.58,216.41,16.2134]
[1731330040699,4.6172,216.58,216.51,16.7841791]
[1731330040898,16.7841791,216.57,216.49,16.7841791]
[1731330041317,16.7841791,216.57,216.47,22.2795]
[1731330041318,16.7841791,216.55,216.47,39.0636791]
[1731330041516,16.7841791,216.57,216.49,16.7841791]
[1731330041907,16.7841791,216.59,216.51,16.7841791]
[1731330042114,16.7841791,216.59,216.48,20.0]
[1731330042115,16.7841791,216.61,216.53,16.7841791]
[1731330043012,16.7841791,216.59,216.51,16.7841791]
[1731330044420,4.6172,216.58,216.51,16.7841791]
[1731330045012,4.6172,216.58,216.53,16.7841791]
[1731330046322,4.6172,216.58,216.51,16.7841791]
[1731330047118,4.6172,216.58,216.53,16.7841791]
[1731330047326,21.4013791,216.58,216.51,16.7841791]
[1731330048429,4.6172,216.58,216.51,16.7841791]
[1731330048609,21.4013791,216.58,216.49,20.0]
[1731330048811,21.4013791,216.58,216.49,36.7841791]
[1731330050514,21.4013791,216.58,216.51,16.7841791]
[1731330051232,21.4013791,216.58,216.49,52.9509791]
[1731330051438,21.4013791,216.58,216.49,48.3319791]
[1731330051609,16.7841791,216.56,216.49,11.5478]
[1731330051941,16.7841791,216.56,216.47,22.8956791]
[1731330052109,16.7841791,216.54,216.45,21.4039791]
[1731330052308,16.7841791,216.54,216.46,20.0]
[1731330052505,16.7841791,216.54,216.45,21.4039791]
[1731330052725,4.6182,216.53,216.45,21.4039791]
[1731330052923,4.6182,216.53,216.47,16.7841791]
[1731330054730,16.7841791,216.55,216.47,16.7841791]
[1731330054913,21.4016791,216.57,216.49,16.7841791]
[1731330055108,4.6175,216.57,216.51,16.7841791]
[1731330055316,4.6175,216.57,216.5,16.7841791]
[1731330055531,21.4013791,216.58,216.5,16.7841791]
[1731330056321,21.4013791,216.58,216.5,21.4029791]
[1731330057024,4.6172,216.58,216.51,16.7841791]
[1731330057623,4.6172,216.58,216.5,4.6188]
[1731330057624,4.6172,216.58,216.54,16.7841791]
[1731330058018,4.6172,216.58,216.5,16.1661]
[1731330058019,21.4013791,216.58,216.5,32.9502791]
[1731330058714,4.6172,216.58,216.51,16.7841791]
[1731330059042,4.6172,216.58,216.52,16.7841791]
[1731330059339,4.6172,216.58,216.51,16.7841791]
[1731330060522,16.7841791,216.55,216.47,16.7841791]
[1731330060724,16.7841791,216.52,216.46,16.7841791]
[1731330061240,16.7841791,216.52,216.44,28.3345791]
[1731330061735,16.7841791,216.52,216.44,32.9547791]
[1731330062440,4.6187,216.51,216.44,32.9547791]
[1731330062946,18.46072957,216.6,216.44,32.9547791]
[1731330062947,11.5411,216.62,216.5,16.7841791]
[1731330063239,16.7841791,216.6,216.52,16.7841791]
[1731330064260,4.617,216.59,216.52,16.7841791]
[1731330066047,16.7841791,216.58,216.5,16.7841791]
[1731330066552,16.7841791,216.54,216.48,16.7841791]
[1731330066845,16.7841791,216.52,216.47,20.0]
[1731330067550,16.7841791,216.52,216.46,20.0]
[1731330068130,21.4028791,216.52,216.46,20.0]
[1731330068953,21.4028791,216.52,216.43,11.551]
[1731330069242,21.4028791,216.52,216.38,23.1074]
[1731330069243,16.7841791,216.48,216.4,16.7841791]
[1731330069541,16.7841791,216.45,216.38,32.9589791]
[1731330069745,4.6187,216.52,216.44,16.7841791]
[1731330069947,4.6187,216.52,216.46,16.7841791]
[1731330070122,4.6187,216.52,216.38,16.1748]
[1731330070123,4.6187,216.52,216.45,16.7841791]
[1731330070319,21.4028791,216.52,216.45,16.7841791]
[1731330070655,16.7841791,216.48,216.41,16.7841791]
[1731330070939,4.6187,216.52,216.38,16.1748]
[1731330070940,16.7841791,216.49,216.42,16.7841791]
[1731330071543,17.00605204,216.59,216.4,0.1]
[1731330071732,16.7841791,216.58,216.5,16.7841791]
[1731330071937,16.7841791,216.58,216.51,16.7841791]
[1731330072137,21.4015791,216.58,216.5,4.6187]
[1731330072356,21.4015791,216.58,216.5,16.7841791]
[1731330073149,15.3108,216.59,216.52,16.7841791]
[1731330073359,4.6169,216.6,216.54,16.7841791]
[1731330074421,4.6169,216.6,216.54,21.4021791]
[1731330074632,32.2335791,216.64,216.58,16.7841791]
[1731330074841,36.8496791,216.64,216.56,16.7841791]
[1731330075039,16.7841791,216.62,216.54,32.9473791]
[1731330075839,16.7841791,216.6,216.52,16.7841791]